Cogmind - Beta 12 *** ADVENTURER MODE // 2024.02.23 @ 14:52:54 Player: Lonely Shikari Result: Destroyed by G-34 Mercenary with Small Laser Performance ------------- Evolutions (1) 500 Regions Visited (2) 400 Robots Destroyed (25) 125 Value Destroyed (733) 733 Prototype IDs (0) 0 Alien Tech Used (0) 0 Bonus (0) 0 TOTAL SCORE: 1758 Bonus ------- None Cogmind --------- Core Integrity 0/400 Matter 300/300 Energy 125/125 System Corruption 2% Temperature Cool (6) Movement Walking (120) Location -9/Materials Parts ------- > --- POWER (1) -------- Light Ion Engine > --- PROPULSION (3) --- Aluminum Leg > --- UTILITY (3) ------ (None) > --- WEAPON (2) ------- (None) > --- INVENTORY (5) ---- (None) Peak State ------------ > --- POWER ------------ Light Nuclear Core > --- PROPULSION ------- Light Treads Light Treads Aluminum Leg > --- UTILITY ---------- Small Storage Unit Seismic Detector > --- WEAPON ----------- Small Laser Hammer > --- INVENTORY -------- Light Ion Engine Light Nuclear Core Aluminum Leg Aluminum Leg [Rating: 10] Favorites ----------- Power Light Nuclear Core Engine Ion Engine Power Core Light Nuclear Core Propulsion Aluminum Leg Treads Light Treads Leg Aluminum Leg Utility Small Storage Unit Device Seismic Detector Storage Small Storage Unit Weapon Light Assault Rifle Energy Gun EM Pulse Gun Ballistic Gun Light Assault Rifle Impact Weapon Hammer Build | -11 -10 -9 ------- Run | Jun Mat Mat Slots Evolved 2 | . . 2 Power . | . . . Propulsion 1 | . . 1 Utility 1 | . . 1 Weapon . | . . . Parts Attached 19 | . 14 5 Power 3 | . 1 2 Engine 1 | . . 1 Core 2 | . 1 1 Reactor . | . . . Propulsion 10 | . 7 3 Treads 2 | . 2 . Leg 8 | . 5 3 Wheel . | . . . Hover . | . . . Flight . | . . . Utility 1 | . 1 . Device 1 | . 1 . Storage . | . . . Processor . | . . . Hackware . | . . . Protection . | . . . Artifact . | . . . Weapon 5 | . 5 . Energy Gun 3 | . 3 . Energy Cannon . | . . . Ballistic Gun 1 | . 1 . Ballistic Cannon . | . . . Launcher . | . . . Special Weapon . | . . . Impact Weapon 1 | . 1 . Slashing Weapon . | . . . Piercing Weapon . | . . . Special Melee Weapon . | . . . Unidentified Prototypes . | . . . Parts Lost 12 | . 2 10 Power 2 | . . 2 Propulsion 4 | . . 4 Utility 2 | . . 2 Weapon 4 | . 2 2 Highest Loss Streak 7 | . 1 7 To Critical Strikes 1 | . . 1 Average Slot Usage (%) 82 | . 92 51 Engine 4 | . 6 . Core 7 | . 7 5 Treads 8 | . 7 11 Leg 17 | . 19 10 Device 11 | . 13 6 Storage 13 | . 14 10 Energy Gun 8 | . 9 3 Ballistic Gun 7 | . 9 . Impact Weapon 2 | . 2 4 Naked Turns . | . . . Heaviest Build 14 | 13 14 14 Greatest Support 40 | 20 40 40 Greatest Overweight (x) 4 | . 4 1 Average Overweight (x) . | . . . Largest Inventory Capacity 8 | 8 8 8 Average Capacity 7 | 8 8 7 Most Carried 7 | 5 7 4 Average Carried 4 | 4 4 3 Final Capacity 8 | 8 8 5 Final Carried 5 | 3 5 . Class Distribution -------------------- 100% | Mutant Dominant Class ---------------- Mutant | -10/Materials Mutant | -9/Materials Resources | -11 -10 -9 ----------- Run | Jun Mat Mat Matter Collected 406 | 200 177 29 Remotely . | . . . Salvage Created 859 | . 642 217 Parts 31 | . 28 3 Haulers Intercepted . | . . . Recyclers Shooed . | . . . Parts Field Recycled . | . . . Retrieved Matter . | . . . Parts Self-Destructed . | . . . Prevented . | . . . Kills | -11 -10 -9 ------- Run | Jun Mat Mat Combat Hostiles Destroyed 19 | . 13 6 Melee 7 | . 3 4 Guns 10 | . 9 1 Classes Destroyed 6 | . 4 2 Worker 1 | . 1 . Builder 1 | . 1 . Watcher 4 | . 3 1 Swarmer 1 | . . 1 Grunt 17 | . 13 4 Brawler 1 | . . 1 Best Kill Streak 6 | . 6 3 Combat Bots Only 6 | . 6 2 Max Kills in Single Turn 1 | . 1 1 Gunslinging . | . . . Exploded . | . . . Melee 1 | . 1 1 Uniques/NPCs Destroyed . | . . . Combat | -11 -10 -9 -------- Run | Jun Mat Mat Damage Taken 1700 | . 604 1096 Core 503 | . 98 405 Absorbed by Shields . | . . . Core Remaining (%) 80 | 100 60 . Volleys Fired 47 | . 44 3 Largest 2 | . 2 1 Hottest 60 | . 60 40 Shots Fired 59 | . 56 3 Gun 59 | . 56 3 Cannon . | . . . Launcher . | . . . Special . | . . . Kinetic 44 | . 44 . Thermal 3 | . . 3 Explosive . | . . . Electromagnetic 12 | . 12 . Robot Hit Streak 16 | . 16 6 Robot Miss Streak 2 | . 2 . Penetration Max . | . . . Secondary Targets 3 | . 3 . Max Gunslinging Chain 1 | . 1 . Shots Hit Robots 72 | . 62 10 Core Hits 44 | . 29 15 Critical Kills . | . . . Critical Parts Destroyed 3 | . 2 1 Critical Strikes 4 | . 2 2 Smash 4 | . 2 2 Melee Attacks 23 | . 16 7 Impact 23 | . 16 7 Slashing . | . . . Piercing . | . . . Sneak Attacks . | . . . Combat Hostiles . | . . . Follow-up Attacks . | . . . Damage Inflicted 1251 | . 862 389 Guns 501 | . 467 34 Cannons . | . . . Explosions . | . . . Melee 528 | . 378 150 Ramming 222 | . 17 205 Kinetic 319 | . 319 . Thermal 34 | . . 34 Explosive . | . . . Electromagnetic 148 | . 148 . Impact 528 | . 378 150 Slashing . | . . . Piercing . | . . . Highest Corruption 2 | . 2 2 Average Corruption 1 | . 1 1 Corruption Purged . | . . . Corruption Blocked . | . . . Effects 8 | . 4 4 Message Errors 3 | . 1 2 Matter Fused 3 | . 2 1 Energy Discharges 1 | . . 1 Parts Fused 1 | . 1 . Overload Shots . | . . . Overflow Damage 114 | . 88 26 Projectiles . | . . . Explosions . | . . . Melee 114 | . 88 26 Knockbacks 2 | . 2 . Impact 2 | . 2 . Kinetic . | . . . Secondary . | . . . Self-Inflicted Damage 40 | . . 40 Shots . | . . . Rammed 78 | . 6 72 Targets Rammed 127 | . 8 119 Kicked 44 | . . 44 Crushed 5 | . 2 3 Highest Temperature 172 | . 172 5 Average Temperature 41 | . 42 4 Received Heat Transfer 747 | . 447 300 Siege Activations . | . . . Robots Corrupted . | . . . Combat Hostiles . | . . . Parts Fried 10 | . 8 2 Impact Corruptions 7 | . 5 2 Robots Melted . | . . . Combat Hostiles . | . . . Parts Melted . | . . . Heat Transferred 75 | . . 75 Parts Sabotaged . | . . . Parts Stolen . | . . . Parts Stripped . | . . . Power Chain Reactions . | . . . Missiles Intercepted . | . . . Alert | -11 -10 -9 ------- Run | Jun Mat Mat Peak Influence 262 | . 262 164 Initial 32 | . . 32 Average 83 | . 79 98 Maximum Alert Level 1 | . 1 . Low Security (%) 92 | 100 90 100 Level 1 7 | . 9 . Level 2 . | . . . Level 3 . | . . . Level 4 . | . . . Level 5 . | . . . High Security . | . . . Max Security . | . . . Squads Dispatched 5 | . 4 1 Investigation 4 | . 4 . Extermination . | . . . Reinforcement 1 | . . 1 Assault . | . . . Garrison . | . . . Intercept . | . . . Searches Triggered . | . . . Construction Impeded . | . . . Haulers Reinforced . | . . . Active Scanning Responses . | . . . Cargo Convoy Interrupts . | . . . Stealth | -11 -10 -9 --------- Run | Jun Mat Mat Distress Signals 2 | . 1 1 Communications Jammed . | . . . Distress Signals . | . . . Times Spotted 39 | . 23 16 Peak Tracking Total 8 | . 4 8 Tactical Retreats 1 | . . 1 Traps | -11 -10 -9 ------- Run | Jun Mat Mat Traps Triggered 5 | . 5 . Indirectly . | . . . Trap Hack Attempts . | . . . Triggered . | . . . Disarmed . | . . . Reprogrammed 1 | . 1 . Reused 1 | . 1 . Traps Extracted . | . . . Installed . | . . . Triggered 1 | . 1 . Machines | -11 -10 -9 ---------- Run | Jun Mat Mat Machines Disabled . | . . . Max in Single Turn . | . . . Machines Repaired . | . . . Machines Sabotaged . | . . . Overloaded Fab Kills . | . . . Hacking | -11 -10 -9 --------- Run | Jun Mat Mat Machines Accessed 5 | . 5 . Terminals 5 | . 5 . Fabricators . | . . . Repair Stations . | . . . Recycling Units . | . . . Scanalyzers . | . . . Garrison Access . | . . . Total Hacks 18 | . 18 . Successful 7 | . 7 . Failed 11 | . 11 . Catastrophic 1 | . 1 . Database Lockouts . | . . . Manual 18 | . 18 . Terminals 18 | . 18 . Fabricators . | . . . Repair Stations . | . . . Recycling Units . | . . . Scanalyzers . | . . . Garrison Access . | . . . Terminal Hacks 1 | . 1 . Reprogram Traps 1 | . 1 . Fabricator Hacks . | . . . Repair Station Hacks . | . . . Recycling Unit Hacks . | . . . Scanalyzer . | . . . Garrison Access Hacks . | . . . Unauthorized Hacks 6 | . 6 . Terminals 6 | . 6 . Botnet 5 | . 5 . Disrupt 1 | . 1 . Fabricators . | . . . Repair Stations . | . . . Recycling Units . | . . . Scanalyzers . | . . . Garrison Access . | . . . Data Cores Recovered . | . . . Used . | . . . Hacking Detections 4 | . 4 . Full Trace Events 4 | . 4 . Feedback Events . | . . . Feedback Blocked . | . . . Robot Schematics Acquired . | . . . Robots Built . | . . . Authchips . | . . . Time . | . . . Total Robot Build Rating . | . . . Part Schematics Acquired . | . . . Parts Built . | . . . Authchips . | . . . Time . | . . . Total Part Build Rating . | . . . Parts Repaired . | . . . Time . | . . . Parts Recycled . | . . . Recycled Matter . | . . . Retrieved Matter . | . . . Retrieved Components . | . . . Parts Scanalyzed . | . . . Part Schematics Acquired . | . . . Parts Damaged . | . . . Bothacking | -11 -10 -9 ------------ Run | Jun Mat Mat Used RIF Installer . | . . . Robots Hacked . | . . . Non-combat . | . . . Combat . | . . . Robot Hacks Applied . | . . . Relay Couplers Released . | . . . Fabnet Peak Effective % . | . . . Robots Rewired . | . . . Allies Hacked . | . . . Hacks Repelled . | . . . Allies | -11 -10 -9 -------- Run | Jun Mat Mat Total Allies . | . . . Largest Group . | . . . Highest-Rated Group . | . . . Highest-Rated Ally . | . . . Total Orders . | . . . Ally Attacks . | . . . Total Damage . | . . . Kills . | . . . Allies Corrupted . | . . . Allies Melted . | . . . Intel | -11 -10 -9 ------- Run | Jun Mat Mat Robot Analysis Total . | . . . Derelict Logs Recovered . | . . . Drone Launches . | . . . Drone Recoveries . | . . . Exploration | -11 -10 -9 ------------- Run | Jun Mat Mat Turns Passed 1174 | 2 881 291 Spaces Moved 484 | 1 401 82 Core 9 | . 1 8 Treads 172 | . 117 55 Legs 303 | 1 283 19 Wheels . | . . . Hover . | . . . Flight . | . . . Fastest Speed 100 | 120 120 100 Average Speed 134 | 120 132 144 Slowest Speed 250 | 120 250 160 Overloaded Moves . | . . . Propulsion Burnouts . | . . . Robots Hopped . | . . . Cave-ins Triggered . | . . . Exploration Rate (%) 24 | 2 58 12 Regions Visited 2 Branch Regions . Pre-discovered Areas . | . . . Known Exits Taken . | . . . Unknown Exits Taken 2 | 1 1 . Scrap Searched . | . . . Spaces Dug . | . . . Terrain Destroyed . | . . . Melee . | . . . Projectile . | . . . AOE . | . . . Terrain Rammed . | . . . Walls Destroyed . | . . . Machines Disabled . | . . . Actions | -11 -10 -9 --------- Run | Jun Mat Mat Total 884 | 3 665 216 Wait 179 | . 179 . Move 482 | . 400 82 Hop . | . . . Pick Up 2 | . 2 . Fast Attach 9 | . 9 . Attach 5 | . . 5 Detach . | . . . Swap 5 | . 5 . Drop 5 | 3 2 . Fire 47 | . 44 3 Melee 23 | . 16 7 Ram 51 | . . 51 Kick 44 | . . 44 Crush 32 | . 8 24 Escape Stasis . | . . . Rewire . | . . . Trap . | . . . Miscellaneous . | . . . Route ------- -11/Junkyard -10/Materials (discovered 2 exits: [*Mat] / [*Min]) -9/Materials History --------- Turn | Location | Event 3 | -11/Junkyard | Discovered new exit (range 0) 3 | -11/Junkyard | Entered Materials 312 | -10/Materials | Build established: Mutant 423 | -10/Materials | Discovered new exit (range 12) 601 | -10/Materials | Discovered new exit (range 16) 884 | -10/Materials | Entered another Materials area 884 | -9/Materials | Evolved 2 slots: Propulsion x1, Utility x1 1054 | -9/Materials | Core integrity fell below 50% 1072 | -9/Materials | Lost 7 parts (1p3n1u2w) 1089 | -9/Materials | Core integrity fell below 20% 1175 | -9/Materials | Destroyed by G-34 Mercenary with Small Laser Last Messages --------------- 01147_ Kicked G-34 Mercenary out of the way. 01151_ Kicked G-34 Mercenary. 01155_ System corrupted: Matter fused (-6). 01155_ Acquired 3 matter. 01155_ Sml. Storage Unit destroyed. 01156_ Kicked G-34 Mercenary. 01159_ Lgt. Nuclear Core destroyed. 01160_ Acquired 4 matter. 01160_ Kicked G-34 Mercenary. 01161_ Kicked G-34 Mercenary out of the way. 01164_ Kicked G-34 Mercenary. 01165_ Aluminum Leg destroyed. 01165_ Kicked G-34 Mercenary. 01166_ Kicked G-34 Mercenary out of the way. 01167_ Kicked G-34 Mercenary. 01170_ Kicked G-34 Mercenary out of the way. 01171_ K-01 Serf collects debris. 01172_ Kicked G-34 Mercenary. 01174_ K-01 Serf collects debris. 01175_ Kicked G-34 Mercenary. Map ----- +----------------------------------------------------+ | ??????????????????????????????????????????# # #? | | ??????????????????????????????????????????# #? | | ??????????????????????????????????????????### #? | | ????????????????????????????????????????????# #? | | ???????????????????????????????????########## ## | | ???????????????????????????????????# # # | | ???????????????????????????????????# # # | | ???????????????????????????????????# + # | | ???????????????????????????????????# """ # # | | ???????????????????????????????????#! """ # # | | ???????????????????????????????????# """ #### ## | | ?????????????????????????######????# #??? #? | | ????????????????????????? #????# "" #??? #? | | ???????????????????????? #????# """ #### #? | | ????????????????????# """"""" #????# S" + #? | | ????????????????????# """"""" #????# # #? | | ????????????????????# """"""" #????#+####### #? | | ????????????????????# """"""" ###### # | | ????????????????????# """"""" + + | | ????????????###+#???# % ###### # | | ????????? ### #######w#####????########### # | | ???????? %%%u%%%%#????????????????????? | | ???????+ T %%%%%%%%###########??????????? | | ???????# %%%%%%%%#%T%% == #??????????? | | ?????????#### #######k%%#%%%%% == #??????????? | | ????????????## ??# %%#@g%#%%%%%%= #??????????? | | ?????????????#????# """%+%m%#%%!%%% !#??????????? | | ??????????????????# "R"%#%%%+%%%%%% #??????????? | | ??????????????????# " ??#%%%#%"""%""" #??????????? | | ??????????????????# ????###%#%""" """ #??????????? | | ??????????????????????????#%#%""" """ #??????????? | | ??????????????????????????#%#+#########??????????? | | ??????????????????????????#+#%#??????????????????? | | ??????????????????????????T%#%#??????????????????? | | ?????????????????????????? # #??????????????????? | | ?????????????????????????? #%#??????????????????? | | ?????????????????????????? # #??????????????????? | | ?????????????????????????? # #??????????????????? | | ??????????????????????????### #??????????????????? | | ???????????????????????????? ??????????????????? | | ???????????????????????????? ??????????????????? | | ???????????????????????????? % ??????????????????? | | ????????????????????????????% ??????????????????? | | ????????????????????????????= ??????????????????? | | ???????????????????????????? ??????????????????? | | ???????????????????????????? ??????????????????? | | ???????????????????????????? ??????????????????? | | ???????????????????????????? ! ??????????????????? | | ???????????????????????????? ??????????????????? | | ?????????????????????????????????????????????????? | +----------------------------------------------------+ Best States ------------- Heat Dissipation 28 Energy Generation 14 Energy Capacity 250 Matter Stores 300 Matter Capacity 300 Sight Range 16 Terrain Scan Density 10 Resistance: KI 20 Resistance: TH 20 Resistance: EX 20 Resistance: EM 20 Resistance: I 20 Resistance: S 20 Resistance: P 20 Evasion (%) 55 Recoil Reduction 2 Offensive Hacking 10 Item Schematics ----------------- None Robot Schematics ------------------ None Fabricated ------------ Nothing Alien Tech Used ----------------- None Achievements -------------- None Challenges ------------ None Game ------ Seed ImprinterGaussLance Manual? 0 Play Time 00:13:48 Cumulative 120.2 hours Start 2024.02.23 @ 14:41:50 End 2024.02.23 @ 14:52:54 Sessions 1 Manual Loads 0 Difficulty Adventurer Special Mode None Game No. 39 Rogue 0 Adventurer 39 Explorer 0 Win Type - Total 0 Types 0/0/0/0/0/0/0/0/0 Lore% 48 Gallery% 54 Achievement% 41 Wizard Run 0 Options --------- ASCII 0 Keyboard 1 Movement Numpad Keybinds 0 Fullscreen 1 Font 18/SmallcapsGlow Map View 76x50 Tactical HUD 1 Map Filters NONE Filters NONE Steam 1 RUN: 9d04769c-29cf-4a90-ac3a-4961bccb721e